bitfinex/quotes_BTCUSD_20251215
["timestamp","ask_amount","ask_price","bid_price","bid_amount"]
[1765826471864,0.0001141,86193.0,86192.0,0.02048]
[1765826472441,0.2321515,86193.0,86192.0,0.02048]
[1765826473233,0.0001141,86193.0,86192.0,0.02048]
[1765826473437,0.2321515,86193.0,86192.0,0.02048]
[1765826473854,0.2321515,86193.0,86192.0,0.002]
[1765826474225,0.2321515,86193.0,86192.0,0.02048]
[1765826474788,0.0001141,86193.0,86192.0,0.01848]
[1765826474989,0.2321515,86193.0,86192.0,0.01848]
[1765826475193,0.0001141,86193.0,86192.0,0.01848]
[1765826475412,0.2321515,86193.0,86192.0,0.01848]
[1765826475611,0.0001141,86193.0,86192.0,0.01848]
[1765826475788,0.2321515,86193.0,86192.0,0.01848]
[1765826475987,0.2321515,86193.0,86192.0,0.01948]
[1765826476193,0.0001141,86193.0,86192.0,0.25252009]
[1765826476414,0.0001141,86193.0,86192.0,0.25152009]
[1765826476628,0.0001141,86193.0,86192.0,0.40340451]
[1765826476832,0.0001141,86193.0,86192.0,0.40840451]
[1765826477204,0.0001141,86193.0,86192.0,0.44485451]
[1765826477824,0.0001141,86193.0,86192.0,0.40840451]
[1765826478726,0.0001141,86193.0,86192.0,0.44485451]
[1765826480132,0.0001141,86193.0,86192.0,0.12143442]
[1765826480335,0.0001141,86193.0,86192.0,0.02348]
[1765826480539,0.0001141,86193.0,86192.0,0.25552009]
[1765826480739,0.0001141,86193.0,86192.0,0.44485451]
[1765826481332,0.0001141,86193.0,86192.0,0.7855729]
[1765826481709,0.0001141,86193.0,86192.0,0.7670929]
[1765826481907,0.0001141,86193.0,86192.0,0.7855729]
[1765826482136,0.01159837,86219.0,86209.0,0.01159971]
[1765826482361,0.01159877,86216.0,86212.0,0.02623]
[1765826482516,0.24357942,86216.0,86215.0,0.11643442]
[1765826482709,0.0115985,86218.0,86216.0,0.11643442]
[1765826482934,0.23198357,86213.0,86212.0,0.04621798]
[1765826483187,0.01159931,86212.0,86209.0,0.11643442]
[1765826483375,0.23198384,86213.0,86210.0,0.25047158]
[1765826483565,0.01321137,86218.0,86210.0,0.25047158]
[1765826483566,0.00161287,86218.0,86217.0,0.23197281]
[1765826483774,0.23196772,86219.0,86218.0,0.11643442]
[1765826483978,0.23208203,86219.0,86218.0,0.11643442]
[1765826484334,0.00011431,86219.0,86218.0,0.46714454]
[1765826484737,0.00011431,86219.0,86218.0,0.34840454]
[1765826484941,0.00011431,86219.0,86218.0,0.36070411]
[1765826486181,0.00011431,86219.0,86218.0,0.36170411]
[1765826486387,0.00011431,86219.0,86218.0,0.36370411]
[1765826487385,0.00011431,86219.0,86218.0,0.24496411]
[1765826487567,0.00011431,86219.0,86218.0,0.36370411]
[1765826487880,0.00011431,86219.0,86218.0,0.4137225]
[1765826488078,0.2434987,86243.0,86242.0,0.11643442]
[1765826488262,0.0115946,86247.0,86242.0,0.11643442]
[1765826488263,0.23189493,86246.0,86242.0,0.36681946]
[1765826488465,0.00011429,86246.0,86243.0,0.24349634]
[1765826488666,0.23200969,86246.0,86243.0,0.24349634]
[1765826488871,0.24349487,86245.0,86242.0,0.13491442]
[1765826489073,0.23190262,86244.0,86242.0,0.13491442]
[1765826489313,0.001,86243.0,86242.0,0.13491442]
[1765826489624,0.23190262,86244.0,86242.0,0.13491442]
[1765826489840,0.00211429,86246.0,86243.0,0.27961287]
[1765826490003,0.00311429,86246.0,86245.0,0.2796075]
[1765826490206,0.00311429,86246.0,86245.0,0.16414442]
[1765826490407,0.00311429,86246.0,86245.0,0.34833192]
[1765826490650,0.00311429,86246.0,86245.0,0.13491442]
[1765826490832,0.00111429,86246.0,86245.0,0.36681192]
[1765826491068,0.2330091,86246.0,86245.0,0.01848]
[1765826491240,0.2320091,86246.0,86245.0,0.01848]
[1765826491441,0.00011429,86246.0,86245.0,0.2976275]
[1765826491663,0.00011429,86246.0,86245.0,0.48894192]
[1765826491886,0.00211429,86246.0,86245.0,0.48894192]
[1765826492110,0.00211429,86246.0,86245.0,0.82966031]
[1765826492499,0.00411429,86246.0,86245.0,0.82966031]
[1765826492747,0.00211429,86246.0,86245.0,0.82966031]
[1765826492955,0.23183928,86267.0,86245.0,0.82966031]
[1765826493145,0.01085572,86266.0,86263.0,0.01159245]
[1765826493298,0.01159191,86267.0,86266.0,0.14656442]
[1765826493500,0.01159191,86267.0,86266.0,0.03013]
[1765826493734,0.01159151,86270.0,86266.0,0.03013]
[1765826493977,0.23180615,86279.0,86272.0,0.06114124]
[1765826493978,0.01159084,86275.0,86272.0,0.06114124]
[1765826494112,0.01159084,86275.0,86271.0,0.34826203]
[1765826494113,0.01159205,86266.0,86262.0,0.03709]
[1765826494317,0.23184699,86264.0,86263.0,0.01848]
[1765826494555,0.24344332,86263.0,86260.0,0.01159285]
[1765826494755,0.24344332,86263.0,86261.0,0.01848]
[1765826494958,0.24344331,86263.0,86261.0,0.01848]
[1765826495888,0.001,86263.0,86261.0,0.01848]
[1765826496100,0.01159285,86260.0,86257.0,0.11643442]
[1765826496230,0.01159299,86259.0,86258.0,0.01848]
[1765826496429,0.24505523,86263.0,86259.0,0.23185986]
[1765826496782,0.01320532,86263.0,86259.0,0.03709]
[1765826496959,0.00161287,86263.0,86258.0,0.03007312]
[1765826497172,0.00161287,86263.0,86258.0,0.26193496]
[1765826497173,0.23185259,86262.0,86258.0,0.26193496]
[1765826497391,0.00261287,86263.0,86261.0,0.23185347]
[1765826497550,0.00161287,86263.0,86261.0,0.23185347]
[1765826497757,0.2318527,86262.0,86260.0,0.11643442]
[1765826497971,0.24505757,86263.0,86260.0,0.11643442]
[1765826497972,0.00261287,86263.0,86261.0,0.23185423]
[1765826498328,0.00161287,86263.0,86261.0,0.23185423]
[1765826498462,0.24339399,86280.0,86274.0,0.11643442]
[1765826498705,0.24339399,86280.0,86274.0,0.18446442]
[1765826498706,0.24340224,86277.0,86274.0,0.18446442]
[1765826498904,0.24340224,86277.0,86274.0,0.01848]
[1765826498905,0.23181517,86276.0,86274.0,0.01848]
[1765826499329,0.23193113,86275.0,86274.0,0.01848]
[1765826499510,0.00011427,86275.0,86274.0,0.01848]
[1765826499708,0.00011427,86275.0,86274.0,0.13491442]
[1765826499918,0.00011427,86275.0,86274.0,0.36673397]
[1765826500112,0.00011427,86275.0,86274.0,0.13491442]
[1765826500318,0.01159017,86280.0,86275.0,0.23181665]
[1765826500685,0.23481686,86275.0,86274.0,0.01848]
[1765826500972,0.003,86275.0,86274.0,0.01848]
[1765826501340,0.24340311,86277.0,86274.0,0.01848]
[1765826501541,0.002,86275.0,86274.0,0.01848]
[1765826501969,0.002,86275.0,86274.0,0.38339354]
[1765826502145,0.01158936,86286.0,86279.0,0.23180372]
[1765826502146,0.23179671,86283.0,86279.0,0.23180372]
[1765826502344,0.03434,86292.0,86271.0,0.01848]
[1765826502345,0.01159124,86272.0,86271.0,0.01848]
[1765826502556,0.00161287,86275.0,86271.0,0.03007138]
[1765826502754,0.00161287,86275.0,86272.0,0.01159124]
[1765826502965,0.01320371,86275.0,86271.0,0.01848]
[1765826503182,0.01320371,86275.0,86271.0,0.03007138]
[1765826503384,0.24802126,86275.0,86271.0,0.03007138]
[1765826503587,0.24502126,86275.0,86271.0,0.03007138]
[1765826503764,0.24502126,86275.0,86272.0,0.24341606]
[1765826503965,0.00261287,86275.0,86274.0,0.23181955]
[1765826504165,0.24339405,86280.0,86276.0,0.2434022]
[1765826504362,0.23179962,86282.0,86279.0,0.04955]
[1765826504622,0.23181149,86277.0,86271.0,0.13491442]
[1765826504780,0.03434,86277.0,86274.0,0.24341009]
[1765826505102,0.001,86275.0,86274.0,0.24341009]
[1765826505401,0.001,86275.0,86274.0,0.01848]
[1765826505548,0.001,86275.0,86274.0,0.41628397]
[1765826505745,0.001,86275.0,86274.0,0.01848]
[1765826506207,0.001,86275.0,86274.0,0.37339955]
[1765826506456,0.001,86275.0,86274.0,0.48983397]
[1765826506678,0.01158896,86289.0,86287.0,0.23178429]
[1765826506879,0.01158748,86300.0,86296.0,0.24334823]
[1765826507005,0.03487,86307.0,86294.0,0.24335216]
[1765826507006,0.2317376,86305.0,86302.0,0.2317437]
[1765826507208,0.2317376,86305.0,86298.0,0.23175418]
[1765826507209,0.01158721,86302.0,86299.0,0.03574761]
[1765826507430,0.01158721,86302.0,86299.0,0.02416]
[1765826507631,0.01158721,86302.0,86298.0,0.01848]
[1765826507632,0.23175239,86299.0,86298.0,0.01848]
[1765826507808,0.23174991,86300.0,86298.0,0.01848]
[1765826508012,0.02500026,86303.0,86302.0,0.23174433]
[1765826508210,0.01816777,86304.0,86300.0,0.06113748]
[1765826508412,0.23174514,86302.0,86300.0,0.04955]
[1765826508619,0.00658083,86304.0,86303.0,0.23174165]
[1765826509039,0.00658083,86304.0,86303.0,0.39772607]
[1765826509216,0.00658083,86304.0,86303.0,0.47127607]
[1765826509557,0.00158083,86304.0,86303.0,0.47127607]
[1765826510064,0.00058083,86304.0,86303.0,0.47127607]
[1765826510389,0.00358083,86304.0,86303.0,0.47127607]
[1765826510594,0.00358083,86304.0,86303.0,0.23953442]
[1765826510794,0.00358083,86304.0,86303.0,0.11643442]
[1765826510989,0.00358083,86304.0,86303.0,0.23953442]
[1765826511526,0.00358083,86304.0,86303.0,0.2875711]
[1765826511724,0.00358083,86304.0,86303.0,0.3060511]
[1765826511921,0.00258083,86304.0,86303.0,0.3060511]
[1765826512355,0.00058083,86304.0,86303.0,0.3060511]
[1765826512576,0.00058083,86304.0,86303.0,0.25603271]
[1765826512755,0.00158083,86304.0,86303.0,0.25603271]
[1765826512953,0.00058083,86304.0,86303.0,0.25603271]
[1765826513166,0.00058083,86304.0,86303.0,0.25803271]
[1765826513468,0.00058083,86304.0,86303.0,0.25903271]
[1765826513671,0.00058083,86304.0,86303.0,0.5997511]
[1765826514058,0.00058083,86304.0,86303.0,0.83149275]
[1765826520343,0.00058083,86304.0,86303.0,0.39874436]
[1765826520453,0.00058083,86304.0,86303.0,0.11943442]
[1765826520654,0.00058083,86304.0,86303.0,0.41920607]
[1765826520855,0.00058083,86304.0,86303.0,0.35117607]
[1765826521060,0.23393266,86304.0,86303.0,0.11943442]
[1765826521285,0.0021937,86304.0,86303.0,0.02148]
[1765826521496,0.0021937,86304.0,86303.0,0.25322165]
[1765826521898,0.0021937,86304.0,86303.0,0.02148]
[1765826522100,0.23393266,86304.0,86303.0,0.02148]
[1765826522499,0.35440266,86304.0,86303.0,0.003]
[1765826522700,1.64510266,86304.0,86303.0,0.003]
[1765826522925,0.0115899,86282.0,86278.0,0.01159044]
[1765826523157,0.23179537,86283.0,86279.0,0.34824053]
[1765826523308,0.23179537,86283.0,86280.0,0.23180269]
[1765826523496,0.01158976,86283.0,86280.0,0.23180269]
[1765826523861,0.2318088,86278.0,86277.0,0.02847399]
[1765826524098,0.03475,86302.0,86278.0,0.07067]
[1765826524299,1.0,86296.0,86290.0,0.01158882]
[1765826524446,0.24335731,86293.0,86291.0,0.01848]
[1765826524651,0.24335281,86295.0,86291.0,0.25025226]
[1765826524854,0.24335281,86295.0,86291.0,0.26184095]
[1765826525052,0.24335537,86294.0,86291.0,0.26184095]
[1765826525254,0.24335537,86294.0,86291.0,0.01848]
[1765826525429,0.23176958,86293.0,86291.0,0.01848]
[1765826525827,0.27781537,86294.0,86285.0,0.11643442]
[1765826525828,0.24337317,86288.0,86285.0,0.11643442]
[1765826526031,0.24337317,86288.0,86286.0,0.01848]
[1765826526230,0.01158882,86290.0,86286.0,0.26185603]
[1765826526432,0.24339641,86279.0,86278.0,0.00999399]
[1765826526635,0.27732462,86287.0,86278.0,0.00999399]
[1765826526636,0.01158882,86290.0,86285.0,0.23178955]
[1765826526857,0.24337754,86286.0,86283.0,0.24338513]
[1765826527034,0.01158896,86289.0,86284.0,0.23179268]
[1765826527240,0.002,86293.0,86290.0,0.24336516]
[1765826527441,0.002,86293.0,86291.0,0.34820804]
[1765826527651,0.24496264,86296.0,86293.0,0.24335546]
[1765826527854,0.23177296,86292.0,86289.0,0.26184238]
[1765826528058,0.00161287,86296.0,86293.0,0.23176722]
[1765826528266,0.00161287,86296.0,86295.0,0.04628]
[1765826528469,0.01158667,86306.0,86301.0,0.24333264]
[1765826528738,0.23174206,86303.0,86299.0,0.12802203]
[1765826528964,0.24334016,86299.0,86293.0,0.11643442]
[1765826529142,0.23174213,86303.0,86298.0,0.23175463]
[1765826529357,0.23204048,86304.0,86303.0,0.04628]
[1765826529564,0.00030152,86304.0,86303.0,0.04628]
[1765826529778,0.00030152,86304.0,86303.0,0.46512607]
[1765826530136,0.00030152,86304.0,86303.0,0.39445607]
[1765826530545,0.00030152,86304.0,86303.0,0.11643442]
[1765826530750,0.00030152,86304.0,86303.0,0.34817607]
[1765826530962,0.00030152,86304.0,86303.0,0.39445607]
[1765826531359,0.00330152,86304.0,86303.0,0.34817607]
[1765826531563,0.00530152,86304.0,86303.0,0.34817607]
[1765826532453,0.00530152,86304.0,86303.0,0.46512607]
[1765826532699,0.00530152,86304.0,86303.0,0.80584446]
[1765826533137,0.00530152,86304.0,86303.0,0.82432446]
[1765826533625,0.00230152,86304.0,86303.0,0.82432446]
[1765826534033,0.00330152,86304.0,86303.0,0.82432446]
[1765826534238,0.00030152,86304.0,86303.0,0.82432446]
[1765826534642,0.00030152,86304.0,86303.0,0.82632446]
[1765826535590,0.00030152,86304.0,86303.0,0.82832446]
[1765826537341,0.00030152,86304.0,86303.0,0.80984446]
[1765826537543,0.00030152,86304.0,86303.0,0.82832446]
[1765826538266,0.00030152,86304.0,86303.0,0.80984446]
[1765826538626,0.00030152,86304.0,86303.0,0.77830607]
[1765826539241,0.00030152,86304.0,86303.0,0.75982607]
[1765826539373,0.23204048,86304.0,86303.0,0.12043442]
[1765826539581,0.29876505,86304.0,86303.0,0.004]
[1765826539792,0.27919335,86304.0,86303.0,0.004]
[1765826540351,0.00191439,86304.0,86303.0,0.46912607]
[1765826540567,0.00191439,86304.0,86303.0,0.39645607]
[1765826540710,0.00191439,86304.0,86303.0,0.46512607]
[1765826540916,0.00030152,86304.0,86303.0,0.46512607]
[1765826541123,0.00030152,86304.0,86303.0,0.39545607]
[1765826541525,0.00030152,86304.0,86303.0,0.46612607]
[1765826541747,0.00030152,86304.0,86303.0,0.11743442]
[1765826542061,0.23204048,86304.0,86303.0,0.001]
[1765826542470,0.00030152,86304.0,86303.0,0.23274165]
[1765826543711,0.00030152,86304.0,86303.0,0.27902165]
[1765826544271,0.00030152,86304.0,86303.0,0.34969165]
[1765826544586,0.00030152,86304.0,86303.0,0.46612607]
[1765826545465,0.00030152,86304.0,86303.0,0.51614446]
[1765826545680,1.52e-06,86304.0,86303.0,0.51614446]
[1765826545915,0.00025346,86322.0,86321.0,0.11643442]
[1765826546106,0.00063422,86322.0,86321.0,0.41288775]
[1765826546266,0.00063422,86322.0,86321.0,0.48355775]
[1765826546429,0.00063422,86322.0,86321.0,0.4832771]
[1765826546840,0.00063422,86322.0,86321.0,0.4126071]
[1765826547088,0.00063422,86322.0,86321.0,0.4832771]
[1765826547286,0.00363422,86322.0,86321.0,0.53329549]
[1765826547678,0.00563422,86322.0,86321.0,0.24989268]
[1765826548267,0.01158493,86319.0,86316.0,0.01158533]
[1765826548398,0.01521875,86322.0,86321.0,0.01848]
[1765826548399,0.00363422,86322.0,86321.0,0.01848]
[1765826548580,0.00363422,86322.0,86321.0,0.25017333]
[1765826549165,0.00063422,86322.0,86321.0,0.25017333]
[1765826549404,0.00263422,86322.0,86321.0,0.29645333]
[1765826549574,0.00163422,86322.0,86321.0,0.29645333]
[1765826549975,0.00363422,86322.0,86321.0,0.29645333]
[1765826550206,0.00163422,86322.0,86321.0,0.36712333]
[1765826550407,0.00163422,86322.0,86321.0,0.48355775]
[1765826550626,0.00263422,86322.0,86321.0,0.48355775]
[1765826551105,0.00163422,86322.0,86321.0,0.48355775]
[1765826552407,0.00163422,86322.0,86321.0,0.53357614]
[1765826554478,0.00163422,86322.0,86321.0,0.36660775]
[1765826554672,0.00163422,86322.0,86321.0,0.48165775]
[1765826555298,0.00163422,86322.0,86321.0,0.53167614]
[1765826556104,0.01158117,86347.0,86341.0,0.23163858]
[1765826556329,0.24322445,86340.0,86337.0,0.01848]
[1765826556547,0.24322445,86340.0,86339.0,0.02674]
[1765826556751,0.00182705,86346.0,86340.0,0.01158211]
[1765826556752,0.01158144,86345.0,86340.0,0.01158211]
[1765826557177,0.23163878,86342.0,86339.0,0.14317442]
[1765826557385,0.00161287,86345.0,86344.0,0.16180442]
[1765826557592,0.00021418,86346.0,86344.0,0.16180442]
[1765826557593,0.00021418,86346.0,86345.0,0.34806335]
[1765826557808,0.00021418,86346.0,86345.0,0.46311335]
[1765826558010,0.00098002,86346.0,86345.0,0.46311335]
[1765826559068,0.00098002,86346.0,86345.0,0.4638327]
[1765826559307,0.00098002,86346.0,86345.0,0.46513252]
[1765826559623,0.0002,86350.0,86345.0,0.46513252]
[1765826559624,0.02497081,86373.0,86370.0,0.01998798]
[1765826559799,0.06224969,86390.0,86370.0,0.49185443]
[1765826559800,0.03117631,86387.0,86370.0,0.49185443]
[1765826560005,0.03117631,86387.0,86370.0,0.46869825]
[1765826560367,0.01157581,86387.0,86370.0,0.46869825]
[1765826560566,0.01083423,86387.0,86370.0,0.46869825]
[1765826560775,0.01157541,86390.0,86370.0,0.46869825]
[1765826560995,0.0002,86391.0,86370.0,0.46869825]
[1765826560996,0.0012,86371.0,86370.0,0.46869825]
[1765826561749,0.0002,86371.0,86370.0,0.47069825]
[1765826562134,0.0002,86371.0,86370.0,0.24013637]
[1765826562314,0.0002,86371.0,86370.0,0.0336]
[1765826562315,0.00181287,86371.0,86370.0,0.0336]
[1765826562519,0.00181287,86371.0,86370.0,0.11739798]
[1765826562907,0.23337207,86371.0,86370.0,0.11739798]
[1765826563128,0.00181287,86371.0,86370.0,0.34895986]
[1765826563530,0.0002,86371.0,86370.0,0.41863986]
[1765826563874,0.0002,86371.0,86370.0,0.07202798]
[1765826564002,0.0002,86371.0,86370.0,0.05358798]
[1765826564198,0.00181287,86371.0,86359.0,0.03384]
[1765826564416,0.01157889,86364.0,86361.0,0.11645359]
[1765826564690,0.23158191,86363.0,86361.0,0.11645359]
[1765826564828,0.01157889,86364.0,86361.0,0.11645359]
[1765826565029,0.01157889,86364.0,86361.0,0.12803289]
[1765826565446,0.24313663,86372.0,86363.0,0.04537]
[1765826565650,0.24315196,86366.0,86363.0,0.04537]
[1765826566084,0.00181287,86371.0,86370.0,0.11645359]
[1765826566474,0.01157742,86375.0,86371.0,0.03384]
[1765826566677,0.00011414,86375.0,86374.0,0.04537]
[1765826566927,0.00011414,86375.0,86374.0,0.23150359]
[1765826567134,0.00011414,86375.0,86374.0,0.16182359]
[1765826567518,0.00011414,86375.0,86374.0,0.11645359]
[1765826567690,0.23155652,86372.0,86370.0,0.02005287]
[1765826568447,0.23155652,86372.0,86371.0,0.03384]
[1765826568786,0.23255652,86372.0,86371.0,0.03384]
[1765826568988,0.23355652,86372.0,86371.0,0.03384]
[1765826569299,0.23255652,86372.0,86371.0,0.03384]
[1765826569912,0.2315592,86371.0,86370.0,0.02005287]
[1765826570916,0.2315592,86371.0,86370.0,0.13510287]
[1765826571330,0.23335661,86371.0,86370.0,0.01844]
[1765826571768,0.23335661,86371.0,86368.0,0.11645359]
[1765826571769,0.23156456,86369.0,86368.0,0.11645359]
[1765826571969,0.23156456,86369.0,86368.0,0.13489359]
[1765826572112,0.00073364,86369.0,86368.0,0.18026359]
[1765826572315,0.00073364,86369.0,86368.0,0.24994359]
[1765826572543,0.00073364,86369.0,86368.0,0.48151083]
[1765826572943,0.00073364,86369.0,86368.0,0.4831237]
[1765826573223,0.00073364,86369.0,86368.0,0.25155646]
[1765826573400,0.00073364,86369.0,86368.0,0.4831237]
[1765826573750,0.00073364,86369.0,86368.0,0.53314209]
[1765826573943,0.00173364,86369.0,86368.0,0.53314209]
[1765826574850,0.00173364,86369.0,86368.0,0.51470209]
[1765826575055,0.00173364,86369.0,86368.0,0.53314209]
[1765826575261,0.00011414,86375.0,86374.0,0.39802314]
[1765826575463,0.00011414,86375.0,86374.0,0.73570601]
[1765826575756,0.00011414,86375.0,86374.0,0.80538601]
[1765826577083,0.00011414,86375.0,86374.0,0.80738601]
[1765826577243,0.00011414,86375.0,86374.0,0.80838601]
[1765826577454,0.0002,86386.0,86385.0,0.68869365]
[1765826577683,0.03117631,86399.0,86385.0,0.68869365]
[1765826577684,0.03117631,86404.0,86396.0,0.39796417]
[1765826577898,0.03117631,86412.0,86396.0,0.48055704]
[1765826578115,0.01101044,86415.0,86414.0,0.34789756]
[1765826578349,0.01139106,86415.0,86414.0,0.18026359]
[1765826578531,0.00058062,86415.0,86414.0,0.16182359]
[1765826578731,0.02296312,86415.0,86410.0,0.01157273]
[1765826578957,0.01139106,86415.0,86412.0,0.01157246]
[1765826579301,0.01139106,86415.0,86412.0,0.23144877]
[1765826579508,0.01139106,86415.0,86413.0,0.23144553]
[1765826579679,0.00058062,86415.0,86414.0,0.12504399]
[1765826580162,0.00058062,86415.0,86399.0,0.06968]
[1765826580163,0.0115734,86405.0,86399.0,0.06968]
[1765826580366,0.0115734,86405.0,86400.0,0.13489359]
[1765826580367,0.2314788,86401.0,86400.0,0.13489359]
[1765826580564,0.01157527,86391.0,86390.0,0.00999399]
[1765826580784,0.01157527,86391.0,86390.0,0.02843399]
[1765826581034,0.01157675,86380.0,86374.0,0.04541755]
[1765826581380,0.01157648,86382.0,86379.0,0.00999399]
[1765826581581,0.23151095,86389.0,86385.0,0.01157608]
[1765826581762,0.03112351,86392.0,86379.0,0.11645359]
[1765826581763,0.01157675,86380.0,86379.0,0.11645359]
[1765826581972,0.07319,86388.0,86381.0,0.01844]
[1765826581973,0.01157608,86385.0,86381.0,0.01844]
[1765826582170,0.06544351,86393.0,86387.0,0.01157581]
[1765826582327,0.03112351,86396.0,86393.0,0.23150023]
[1765826582535,0.26261046,86398.0,86395.0,0.04551]
[1765826582736,0.26261046,86398.0,86393.0,0.01157501]
[1765826582737,0.2742988,86398.0,86397.0,0.11645359]
[1765826583032,0.2742988,86398.0,86397.0,0.3479431]
[1765826583033,0.00011412,86398.0,86397.0,0.3479431]
[1765826583235,0.0010387,86398.0,86397.0,0.46737597]
[1765826583665,0.0030387,86398.0,86397.0,0.46737597]
[1765826583865,0.0010387,86398.0,86397.0,0.46737597]
[1765826584126,0.0010387,86398.0,86397.0,0.23310238]
[1765826584289,0.0030387,86398.0,86397.0,0.23310238]
[1765826584627,0.0030387,86398.0,86397.0,0.46737597]
[1765826584898,0.0030387,86398.0,86397.0,0.51739436]
[1765826585966,0.0050387,86398.0,86397.0,0.53583436]
[1765826586188,0.0030387,86398.0,86397.0,0.53583436]
[1765826586407,0.0030387,86398.0,86397.0,0.53683436]
[1765826586654,0.0030387,86398.0,86397.0,0.53583436]
[1765826587065,0.0030387,86398.0,86397.0,0.53683436]
[1765826587278,0.0010387,86398.0,86397.0,0.51839436]
[1765826587489,0.0010387,86398.0,86397.0,0.53683436]
[1765826587911,0.0010387,86398.0,86397.0,0.53783436]
[1765826588327,0.0010387,86398.0,86397.0,0.53683436]
[1765826588538,0.0010387,86398.0,86397.0,0.53783436]
[1765826589677,0.0010387,86398.0,86397.0,0.12006646]
[1765826589973,0.0010387,86398.0,86397.0,0.13850646]
[1765826590176,0.23252553,86398.0,86397.0,0.13850646]
[1765826590379,0.0010387,86398.0,86397.0,0.46937597]
[1765826590586,0.0010387,86398.0,86397.0,0.25632646]
[1765826590787,0.35392553,86398.0,86397.0,0.001]
[1765826590993,0.23150559,86391.0,86390.0,0.11645359]
[1765826591209,0.23150559,86391.0,86379.0,0.11645359]
[1765826591210,0.24311182,86380.0,86379.0,0.11645359]
[1765826591381,0.24311182,86380.0,86379.0,0.13489359]
[1765826591585,0.24312962,86374.0,86373.0,0.01998798]
[1765826591783,0.24312962,86374.0,86358.0,0.07231]
[1765826591784,0.23156992,86367.0,86366.0,0.11645359]
[1765826591961,0.05978755,86374.0,86366.0,0.11645359]
[1765826591962,0.01157688,86379.0,86375.0,0.01157742]
[1765826592176,0.03378,86394.0,86378.0,0.06552]
[1765826592367,0.2430729,86394.0,86391.0,0.01157527]
[1765826592565,0.01157434,86398.0,86394.0,0.01157487]
[1765826592771,0.23149244,86396.0,86393.0,0.1280286]
[1765826593030,0.01157447,86397.0,86393.0,0.11645359]
[1765826593236,0.23148716,86398.0,86394.0,0.23149709]
[1765826593516,0.002,86394.0,86393.0,0.11645359]
[1765826593687,0.24306705,86396.0,86393.0,0.11645359]
[1765826593987,0.002,86396.0,86395.0,0.23149487]
[1765826594190,0.01157487,86394.0,86392.0,0.23150265]
[1765826594368,0.24306679,86396.0,86393.0,0.01157501]
[1765826594699,0.01157514,86392.0,86385.0,0.12802967]
[1765826594852,0.002,86398.0,86385.0,0.12802967]
[1765826594853,0.01157407,86400.0,86394.0,0.01157487]
[1765826595058,0.23147714,86402.0,86400.0,0.01157407]
[1765826595261,0.00011412,86402.0,86400.0,0.23148106]
[1765826596086,0.24305274,86401.0,86397.0,0.24306269]
[1765826596325,0.00311412,86402.0,86399.0,0.24305836]
[1765826596652,0.00311412,86402.0,86400.0,0.2314802]
[1765826596842,0.01157407,86400.0,86396.0,0.01844]
[1765826597013,0.0115742,86399.0,86396.0,0.01844]
[1765826597201,0.002,86399.0,86397.0,0.01157447]
[1765826597619,0.23148951,86397.0,86396.0,0.01844]
[1765826597822,0.0115742,86399.0,86396.0,0.01844]
[1765826597823,0.23148683,86398.0,86396.0,0.01844]
[1765826598157,0.0453542,86399.0,86396.0,0.24993146]
[1765826598279,0.03378,86399.0,86396.0,0.0300146]
[1765826598479,0.03378,86399.0,86396.0,0.26150145]
[1765826598725,0.23148951,86397.0,86396.0,0.01844]
[1765826598967,0.002,86397.0,86396.0,0.01844]
[1765826599123,0.002,86397.0,86396.0,0.24993219]
[1765826599688,0.002,86397.0,86396.0,0.01844]
[1765826599933,0.23648951,86397.0,86396.0,0.01844]
[1765826600246,0.003,86397.0,86396.0,0.01844]
[1765826600450,0.23448951,86397.0,86396.0,0.01844]
[1765826600830,0.003,86397.0,86396.0,0.01844]
[1765826601034,0.23448951,86397.0,86396.0,0.01844]
[1765826601238,0.23648951,86397.0,86396.0,0.01844]
[1765826601736,0.005,86397.0,86396.0,0.24993219]
[1765826602392,0.005,86397.0,86396.0,0.48581865]
[1765826602590,0.005,86397.0,86396.0,0.53583704]
[1765826603518,0.003,86397.0,86396.0,0.53583704]
[1765826603714,0.004,86397.0,86396.0,0.53583704]
[1765826604681,0.001,86397.0,86396.0,0.53583704]
[1765826605077,0.002,86397.0,86396.0,0.82653704]
[1765826606476,0.00011412,86402.0,86401.0,0.68865078]
[1765826606661,4.12e-06,86402.0,86401.0,0.80808365]
[1765826606999,0.00105618,86402.0,86401.0,0.80808365]
[1765826607320,0.00094618,86402.0,86401.0,0.80808365]
[1765826607801,0.00294618,86402.0,86401.0,0.80808365]
[1765826608302,0.0002,86415.0,86414.0,0.39791595]
[1765826608466,0.00058032,86415.0,86414.0,0.49731882]
[1765826608725,3.2e-07,86415.0,86414.0,0.56962882]
[1765826609101,0.01156845,86442.0,86439.0,0.11645359]
[1765826609102,0.23137135,86442.0,86439.0,0.11645359]
[1765826609304,0.23137135,86442.0,86440.0,0.2429415]
[1765826609305,0.00011405,86442.0,86440.0,0.2429415]
[1765826609460,0.00011405,86442.0,86441.0,0.22135075]
[1765826609668,0.00011405,86442.0,86441.0,0.19821359]
[1765826610469,0.00011405,86442.0,86437.0,0.03000911]
[1765826610695,0.0116825,86442.0,86440.0,0.11645359]
[1765826610868,0.01156858,86441.0,86438.0,0.24294869]
[1765826611070,0.24294118,86441.0,86439.0,0.01844]
[1765826611274,0.00111405,86442.0,86439.0,0.01844]
[1765826611475,0.00311405,86442.0,86441.0,0.39333527]
[1765826611660,0.00111405,86442.0,86441.0,0.39333527]
[1765826611860,0.00111405,86442.0,86441.0,0.46751814]
[1765826612209,0.00111405,86442.0,86441.0,0.39494814]
[1765826612379,0.00111405,86442.0,86441.0,0.13650646]
[1765826612575,0.00111405,86442.0,86441.0,0.11806646]
[1765826612774,0.00211405,86442.0,86441.0,0.13650646]
[1765826612977,0.00011405,86442.0,86441.0,0.13650646]
[1765826613288,0.00011405,86442.0,86441.0,0.18160646]
[1765826613492,0.00011405,86442.0,86441.0,0.13650646]
[1765826613896,0.00011405,86442.0,86438.0,0.01156898]
[1765826613897,0.01156885,86439.0,86438.0,0.11645359]
[1765826614118,0.0116825,86442.0,86437.0,0.24295004]
[1765826614295,0.00011405,86442.0,86437.0,0.01844]
[1765826614642,0.24305369,86442.0,86438.0,0.04763898]
[1765826614860,0.00111405,86442.0,86438.0,0.04763898]
[1765826615061,0.00111405,86442.0,86440.0,0.23137303]
[1765826615062,0.00011405,86442.0,86440.0,0.23137303]
[1765826615342,0.00011405,86442.0,86441.0,0.18469075]
[1765826615556,0.00011405,86442.0,86441.0,0.13883003]
[1765826615557,0.00111405,86442.0,86441.0,0.13883003]
[1765826615776,0.00011405,86442.0,86441.0,0.04671287]
[1765826616013,0.00211405,86442.0,86441.0,0.23214646]
[1765826616476,0.00211405,86442.0,86441.0,0.47954842]
[1765826616714,0.00211405,86442.0,86441.0,0.46640525]
[1765826616908,0.00211405,86442.0,86441.0,0.46740525]
[1765826617110,0.00011405,86442.0,86441.0,0.46740525]